fUST/lending_fUST_20250524
["ID","MTS","AMOUNT","RATE_DAILY","PERIOD"]
[362204293,1748092243996,-430.0,0.00023013,3]
[362204294,1748092244007,-430.0,0.00023013,3]
[362204295,1748092244018,-229.12393663,0.00023013,3]
[362204296,1748092244028,-430.0,0.00023013,3]
[362204297,1748092244040,-430.0,0.00023013,3]
[362204298,1748092244052,-430.0,0.00023013,3]
[362204299,1748092244063,-430.0,0.00023013,3]
[362204300,1748092244075,-430.0,0.00023013,3]
[362204301,1748092244086,-430.0,0.00023013,3]
[362204302,1748092244096,-430.0,0.00023013,3]
[362204303,1748092244107,-430.0,0.00023013,3]
[362204304,1748092244118,-631.2,0.00023013,3]
[362204305,1748092244129,-430.0,0.00023013,3]
[362204306,1748092244140,-804.19,0.00023013,3]
[362204307,1748092244150,-156.18678536,0.00023287,2]
[362204308,1748092244161,-430.0,0.00023287,3]
[362204309,1748092244172,-430.0,0.00023287,3]
[362204310,1748092244182,-464.7,0.00023287,3]
[362204311,1748092244193,-615.61,0.00023287,3]
[362204312,1748092244203,-430.0,0.00023287,3]
[362204313,1748092244214,-430.0,0.00023287,3]
[362204314,1748092244227,-430.0,0.00023287,3]
[362204315,1748092244238,-430.0,0.00023287,3]
[362204316,1748092244249,-430.0,0.00023287,3]
[362204317,1748092244260,-430.0,0.00023287,3]
[362204318,1748092244271,-430.0,0.00023287,3]
[362204319,1748092244283,-430.0,0.00023287,3]
[362204320,1748092244305,-430.0,0.00023287,3]
[362204321,1748092244319,-430.0,0.00023287,3]
[362204322,1748092244333,-631.2,0.00023287,3]
[362204323,1748092244346,-430.0,0.00023287,3]
[362204324,1748092244358,-804.19,0.00023287,3]
[362204325,1748092244371,-207.4,0.00023315,2]
[362204326,1748092244385,-2182.14,0.00023426,2]
[362204327,1748092244397,-161.78,0.00023551,10]
[362204328,1748092244410,-430.0,0.00023561,3]
[362204329,1748092244422,-430.0,0.00023561,3]
[362204330,1748092244435,-464.7,0.00023561,3]
[362204331,1748092244447,-615.61,0.00023561,3]
[362204332,1748092244459,-251.06649491,0.00023561,3]
[362204333,1748092244470,-430.0,0.00023561,3]
[362204334,1748092244482,-430.0,0.00023561,3]
[362204335,1748092244494,-430.0,0.00023561,3]
[362204336,1748092244508,-430.0,0.00023561,3]
[362204337,1748092244520,-430.0,0.00023561,3]
[362204338,1748092244531,-430.0,0.00023561,3]
[362204339,1748092244544,-430.0,0.00023561,3]
[362204340,1748092244555,-430.0,0.00023561,3]
[362204341,1748092244567,-430.0,0.00023561,3]
[362204342,1748092244579,-631.2,0.00023561,3]
[362204343,1748092244591,-430.0,0.00023561,3]
[362204344,1748092244602,-804.19,0.00023561,3]
[362204345,1748092244613,-430.0,0.00023835,3]
[362204346,1748092244624,-430.0,0.00023835,3]
[362204347,1748092244636,-464.7,0.00023835,3]
[362204348,1748092244647,-615.61,0.00023835,3]
[362204349,1748092244660,-430.0,0.00023835,3]
[362204350,1748092244671,-430.0,0.00023835,3]
[362204351,1748092244831,-430.0,0.00023835,3]
[362204352,1748092244847,-430.0,0.00023835,3]
[362204353,1748092244856,-430.0,0.00023835,3]
[362204354,1748092244866,-430.0,0.00023835,3]
[362204355,1748092244875,-430.0,0.00023835,3]
[362204356,1748092244885,-430.0,0.00023835,3]
[362204357,1748092244895,-259.23,0.00023835,3]
[362204358,1748092244910,-631.2,0.00023835,3]
[362204359,1748092244919,-430.0,0.00023835,3]
[362204360,1748092244929,-804.19,0.00023835,3]
[362204361,1748092244938,-364.90335702,0.000239,2]
[362204362,1748092244948,-430.0,0.00024109,3]
[362204363,1748092244958,-430.0,0.00024109,3]
[362204364,1748092244967,-464.7,0.00024109,3]
[362204365,1748092244979,-615.61,0.00024109,3]
[362204366,1748092244988,-430.0,0.00024109,3]
[362204367,1748092244998,-430.0,0.00024109,3]
[362204368,1748092245007,-430.0,0.00024109,3]
[362204369,1748092245017,-533.13032205,0.00024109,3]
[362204370,1748092245026,-430.0,0.00024109,3]
[362204371,1748092245036,-430.0,0.00024109,3]
[362204372,1748092245045,-430.0,0.00024109,3]
[362204373,1748092245054,-430.0,0.00024109,3]
[362204374,1748092245065,-631.2,0.00024109,3]
[362204375,1748092245074,-430.0,0.00024109,3]
[362204376,1748092245083,-804.19,0.00024109,3]
[362204377,1748092245092,-430.0,0.00024383,3]
[362204378,1748092245102,-430.0,0.00024383,3]
[362204379,1748092245111,-464.7,0.00024383,3]
[362204380,1748092245120,-615.61,0.00024383,3]
[362204381,1748092245129,-430.0,0.00024383,3]
[362204382,1748092245139,-430.0,0.00024383,3]
[362204383,1748092245149,-430.0,0.00024383,3]
[362204384,1748092245158,-430.0,0.00024383,3]
[362204385,1748092245167,-430.0,0.00024383,3]
[362204386,1748092245177,-391.89962917,0.00024383,3]
[362204387,1748092245186,-430.0,0.00024383,3]
[362204388,1748092245195,-631.2,0.00024383,3]
[362204389,1748092245205,-430.0,0.00024383,3]
[362204390,1748092245214,-804.19,0.00024383,3]
[362204391,1748092245224,-948.217236,0.000245,2]
[362204392,1748092245234,-500.0,0.00024643,2]
[362204393,1748092245243,-430.0,0.00024657,3]
[362204394,1748092245253,-430.0,0.00024657,3]
[362204395,1748092245262,-464.7,0.00024657,3]
[362204396,1748092245271,-615.61,0.00024657,3]
[362204397,1748092245280,-430.0,0.00024657,3]
[362204398,1748092245290,-229.12393663,0.00024657,3]
[362204399,1748092245299,-430.0,0.00024657,3]
[362204400,1748092245309,-430.0,0.00024657,3]
[362204401,1748092245318,-430.0,0.00024657,3]
[362204402,1748092245329,-430.0,0.00024657,3]
[362204403,1748092245339,-430.0,0.00024657,3]
[362204404,1748092245349,-631.2,0.00024657,3]
[362204405,1748092245358,-430.0,0.00024657,3]
[362204406,1748092245367,-804.19,0.00024657,3]
[362204407,1748092245377,-215.0738,0.00024684,2]
[362204408,1748092245386,-200.265,0.000248,2]
[362204409,1748092245395,-2493.88,0.00024804,2]
[362204410,1748092245405,-19870.15602044,0.000249,2]
[362204411,1748092245415,-863.14491626,0.000249,3]
[362204412,1748092245424,-418062.574706,0.000249,2]
[362204413,1748092245433,-1926.36345054,0.000249,2]
[362204414,1748092245442,-430.0,0.00024931,3]
[362204415,1748092245452,-430.0,0.00024931,3]
[362204416,1748092245462,-464.7,0.00024931,3]
[362204417,1748092245471,-615.61,0.00024931,3]
[362204418,1748092245480,-430.0,0.00024931,3]
[362204419,1748092245490,-430.0,0.00024931,3]
[362204420,1748092245499,-430.0,0.00024931,3]
[362204421,1748092245511,-430.0,0.00024931,3]
[362204422,1748092245521,-430.0,0.00024931,3]
[362204423,1748092245530,-430.0,0.00024931,3]
[362204424,1748092245540,-631.2,0.00024931,3]
[362204425,1748092245550,-804.19,0.00024931,3]
[362204426,1748092245559,-513.18543104,0.00024931,3]
[362204427,1748092245568,-1926.3634505,0.00024994,2]
[362204428,1748092245579,-161.25016391,0.00024999,2]
[362204429,1748092245588,-155.0,0.00024999,2]
[362204430,1748092245597,-609.20861379,0.00024999,2]
[362204432,1748092245830,-1000.1796084,0.00024999,2]
[362204440,1748092703987,1936436.20802947,0.00024657,120]
[362204442,1748092744240,-172.48186,0.00013699,2]
[362204443,1748092836633,5000.0,0.00021917,30]
[362204603,1748093437942,-3276.18696416,0.00015,2]
[362204604,1748093437959,-215.38,0.00016002,2]
[362204605,1748093437969,-323.07,0.00017336,2]
[362204606,1748093437979,-500.0,0.00017999,2]
[362204607,1748093437989,-500.0,0.00017999,2]
[362204608,1748093437999,-284.13375798,0.00017999,2]
[362204609,1748093438009,-633.08223378,0.00017999,2]
[362204610,1748093438018,-500.0,0.00017999,2]
[362204611,1748093438027,-500.0,0.00017999,2]
[362204612,1748093438037,-500.0,0.00017999,2]
[362204613,1748093438046,-500.0,0.00017999,2]
[362204614,1748093438056,-216.24415834,0.00017999,2]
[362204615,1748093438066,-549.42561135,0.00017999,2]
[362204616,1748093438075,-17114.15843327,0.00018,2]
[362204617,1748093438087,-10618.3999998,0.00018,2]
[362204618,1748093438099,-1435.78988996,0.00018,2]
[362204619,1748093438110,-3296.67354326,0.00018,2]
[362204620,1748093438122,-78516.68808619,0.00018,2]
[362204621,1748093438132,-25935.78929337,0.00018,2]
[362204622,1748093438141,-430.76,0.0001867,2]
[362204623,1748093438151,-948.65496934,0.00019,20]
[362204624,1748093438160,-111328.1076511,0.0002,2]
[362204646,1748093443199,-865.20744749,0.0002,2]
[362204700,1748093831359,-169.163151,0.00013699,2]
[362204709,1748094036224,159.48633858,6e-07,2]
[362204710,1748094036325,159.48633858,6e-07,2]
[362204731,1748094632176,-381.16,0.00014333,2]
[362204732,1748094632186,-428.61192445,0.00015636,2]
[362204733,1748094632296,-333.70807555,0.00015636,2]
[362204734,1748094632307,-1200.0,0.0001579,2]
[362204735,1748094632316,-24900.0,0.00015791,2]
[362204736,1748094632326,-279.8757479,0.00015852,2]
[362204737,1748094632336,-300.0,0.00016485,2]
[362204738,1748094632345,-300.0,0.00016485,2]
[362204739,1748094632355,-300.0,0.00016485,2]
[362204740,1748094632365,-300.0,0.00016485,2]
[362204741,1748094632375,-300.0,0.00016485,2]
[362204742,1748094632387,-300.0,0.00016485,2]
[362204743,1748094632398,-4666.40322622,0.00016487,2]
[362204744,1748094632411,-4767.79309148,0.00016487,2]
[362204745,1748094632422,-1143.48,0.00016938,2]
[362204746,1748094632431,-152.0,0.00017096,2]
[362204747,1748094632442,-500.0,0.00017175,2]
[362204748,1748094632453,-500.0,0.00017175,2]
[362204749,1748094632463,-500.0,0.00017175,2]
[362204750,1748094632473,-500.0,0.00017175,2]
[362204751,1748094632483,-500.0,0.00017175,2]
[362204752,1748094632494,-380.0,0.00017175,2]
[362204753,1748094632505,-500.0,0.00017175,2]
[362204754,1748094632514,-500.0,0.00017175,2]
[362204755,1748094632524,-500.0,0.00017175,2]
[362204756,1748094632534,-500.0,0.00017175,2]
[362204757,1748094632543,-500.0,0.00017175,2]
[362204758,1748094632552,-500.0,0.00017175,2]
[362204759,1748094632562,-500.0,0.00017175,2]
[362204760,1748094632571,-500.0,0.00017175,2]
[362204761,1748094632580,-377.60920835,0.00017175,2]
[362204762,1748094632589,-500.0,0.00017175,2]
[362204763,1748094632599,-178.32839605,0.00017175,2]
[362204764,1748094632608,-500.0,0.00017175,2]
[362204765,1748094632618,-213.6562312,0.00017175,2]
[362204766,1748094632627,-500.0,0.00017175,2]
[362204767,1748094632636,-500.0,0.00017175,2]
[362204768,1748094632645,-500.0,0.00017175,2]
[362204769,1748094632654,-500.0,0.00017175,2]
[362204770,1748094632664,-536.64583668,0.00017175,2]
[362204771,1748094632674,-500.0,0.00017175,2]
[362204772,1748094632683,-500.0,0.00017175,2]
[362204773,1748094632693,-500.0,0.00017175,2]
[362204774,1748094632705,-500.0,0.00017175,2]
[362204775,1748094632718,-500.0,0.00017175,2]
[362204776,1748094632727,-500.0,0.00017175,2]
[362204777,1748094632736,-500.0,0.00017175,2]
[362204778,1748094632747,-500.0,0.00017175,2]
[362204779,1748094632756,-500.0,0.00017175,2]
[362204780,1748094632766,-500.0,0.00017175,2]
[362204781,1748094632775,-500.0,0.00017175,2]
[362204782,1748094632786,-500.0,0.00017175,2]
[362204783,1748094632796,-500.0,0.00017175,2]
[362204784,1748094632806,-500.0,0.00017175,2]
[362204785,1748094632815,-500.0,0.00017175,2]
[362204786,1748094632824,-500.0,0.00017175,2]
[362204787,1748094632833,-500.0,0.00017175,2]
[362204788,1748094632843,-500.0,0.00017175,2]
[362204789,1748094632852,-500.0,0.00017175,2]
[362204790,1748094632861,-500.0,0.00017175,2]
[362204791,1748094632871,-500.0,0.00017175,2]
[362204792,1748094632880,-500.0,0.00017175,2]
[362204793,1748094632890,-500.0,0.00017175,2]
[362204794,1748094632900,-500.0,0.00017175,2]
[362204795,1748094632909,-500.0,0.00017175,2]
[362204796,1748094632919,-500.0,0.00017175,2]
[362204797,1748094632928,-605.12328112,0.00017175,2]
[362204798,1748094632938,-500.0,0.00017175,2]
[362204799,1748094632947,-500.0,0.00017175,2]
[362204800,1748094632957,-500.0,0.00017175,2]
[362204801,1748094632966,-500.0,0.00017175,2]
[362204802,1748094632975,-500.0,0.00017175,2]
[362204803,1748094632984,-1620.0,0.00017354,2]
[362204804,1748094632995,-327.12378332,0.00017449,2]
[362204805,1748094633004,-201.26251785,0.000179,2]
[362204806,1748094633013,-200.0,0.00017998,10]
[362204807,1748094633023,-200.0,0.00017998,10]
[362204808,1748094633033,-200.0,0.00017998,10]
[362204809,1748094633042,-200.0,0.00017998,10]
[362204810,1748094633052,-200.0,0.00017998,10]
[362204811,1748094633061,-200.0,0.00017998,10]
[362204812,1748094633070,-200.0,0.00017998,10]
[362204813,1748094633080,-200.0,0.00017998,10]
[362204814,1748094633089,-200.0,0.00017998,10]
[362204815,1748094633098,-200.0,0.00017998,10]
[362204816,1748094633108,-200.0,0.00017998,10]
[362204817,1748094633117,-200.0,0.00017998,10]
[362204818,1748094633126,-200.0,0.00017998,10]
[362204819,1748094633135,-200.0,0.00017998,10]
[362204820,1748094633145,-200.0,0.00017998,10]
[362204821,1748094633155,-200.0,0.00017998,10]
[362204822,1748094633164,-200.0,0.00017998,10]
[362204823,1748094633173,-200.0,0.00017998,10]
[362204824,1748094633182,-200.0,0.00017998,10]
[362204825,1748094633192,-200.0,0.00017998,10]
[362204826,1748094633202,-200.0,0.00017998,10]
[362204827,1748094633211,-200.0,0.00017998,10]
[362204828,1748094633220,-200.0,0.00017998,10]
[362204829,1748094633230,-200.0,0.00017998,10]
[362204830,1748094633239,-200.0,0.00017998,10]
[362204831,1748094633248,-200.0,0.00017998,10]
[362204832,1748094633257,-200.0,0.00017998,10]
[362204833,1748094633267,-200.0,0.00017998,10]
[362204834,1748094633275,-200.0,0.00017998,10]
[362204835,1748094633285,-200.0,0.00017998,10]
[362204836,1748094633413,-200.0,0.00017998,10]
[362204837,1748094633424,-200.0,0.00017998,10]
[362204838,1748094633434,-200.0,0.00017998,10]
[362204839,1748094633444,-200.0,0.00017998,10]
[362204840,1748094633454,-200.0,0.00017998,10]
[362204841,1748094633463,-200.0,0.00017998,10]
[362204842,1748094633473,-200.0,0.00017998,10]
[362204843,1748094633483,-200.0,0.00017998,10]
[362204844,1748094633493,-200.0,0.00017998,10]
[362204845,1748094633502,-200.0,0.00017998,10]
[362204846,1748094633512,-200.0,0.00017998,10]
[362204847,1748094633521,-200.0,0.00017998,10]
[362204848,1748094633530,-200.0,0.00017998,10]
[362204849,1748094633540,-200.0,0.00017998,10]
[362204850,1748094633550,-200.0,0.00017998,10]
[362204851,1748094633559,-200.0,0.00017998,10]
[362204852,1748094633568,-200.0,0.00017998,10]
[362204853,1748094633577,-200.0,0.00017998,10]
[362204854,1748094633586,-200.0,0.00017998,10]
[362204855,1748094633596,-200.0,0.00017998,10]
[362204856,1748094633605,-200.0,0.00017998,10]
[362204857,1748094633614,-200.0,0.00017998,10]
[362204858,1748094633623,-200.0,0.00017998,10]
[362204859,1748094633632,-200.0,0.00017998,10]
[362204860,1748094633642,-200.0,0.00017998,10]
[362204861,1748094633651,-200.0,0.00017998,10]
[362204862,1748094633660,-200.0,0.00017998,10]
[362204863,1748094633670,-200.0,0.00017998,10]
[362204864,1748094633679,-200.0,0.00017998,10]
[362204865,1748094633689,-200.0,0.00017998,10]
[362204866,1748094633699,-200.0,0.00017998,10]
[362204867,1748094633711,-200.0,0.00017998,10]
[362204868,1748094633720,-200.0,0.00017998,10]
[362204869,1748094633730,-200.0,0.00017998,10]
[362204870,1748094633739,-200.0,0.00017998,10]
[362204871,1748094633749,-200.0,0.00017998,10]
[362204872,1748094633758,-200.0,0.00017998,10]
[362204873,1748094633768,-200.0,0.00017998,10]
[362204874,1748094633777,-200.0,0.00017998,10]
[362204875,1748094633787,-200.0,0.00017998,10]
[362204876,1748094633796,-200.0,0.00017998,10]
[362204877,1748094633807,-200.0,0.00017998,10]
[362204878,1748094633816,-200.0,0.00017998,10]
[362204879,1748094633826,-281.153049,0.00017998,10]
[362204880,1748094633836,-300.0,0.00018015,2]
[362204881,1748094633845,-420.0,0.00018015,2]
[362204882,1748094633855,-1524.64,0.00018241,2]
[362204883,1748094633864,-201.26251776,0.00018438,2]
[362204884,1748094633874,-404.61806677,0.000189,2]
[362204885,1748094633883,-201.26251776,0.00018977,2]
[362204886,1748094633892,-201.26251776,0.00019515,2]
[362204887,1748094633901,-1905.8,0.00019544,2]
[362204888,1748094633911,-5024.63012889,0.00019593,2]
[362204889,1748094633920,-180.0,0.00019686,2]
[362204890,1748094633930,-105407.66159209,0.0002,2]
[362204891,1748094633940,-161.93955036,0.0002,4]
[362204892,1748094633949,-151.0,0.0002,2]
[362204893,1748094633959,-201.26251776,0.00020054,2]
[362204894,1748094633968,-201.26251776,0.00020592,3]
[362204895,1748094633978,-1294.7173744,0.00020847,3]
[362204896,1748094633988,-2286.96,0.00020847,2]
[362204897,1748094633998,-201.26251776,0.00021131,4]
[362204898,1748094634008,-314.61239117,0.00021629,2]
[362204899,1748094634017,-12649.97184255,0.00021629,2]
[362204900,1748094634026,-894.64583333,0.00021659,2]
[362204901,1748094634036,-201.26251776,0.00021669,5]
[362204902,1748094634045,-450.0,0.00021917,3]
[362204903,1748094634054,-430.0,0.00021917,3]
[362204904,1748094634064,-430.0,0.00021917,3]
[362204905,1748094634073,-430.0,0.00021917,3]
[362204906,1748094634083,-290.03566025,0.00021917,3]
[362205012,1748094645447,-235.63,0.00014644,2]
[362205013,1748094645457,-471.25,0.00015976,2]
[362205014,1748094645467,-706.88,0.00017307,2]
[362205015,1748094645476,-942.51,0.00018638,2]
[362205016,1748094645486,-1178.13,0.00019969,2]
[362205017,1748094645496,-1413.76,0.00021301,2]
[362205018,1748094645505,-50000.0,0.00021917,2]
[362205019,1748094645515,-139.96433975,0.00021917,3]
[362205020,1748094645524,-430.0,0.00021917,3]
[362205021,1748094645533,-430.0,0.00021917,3]
[362205022,1748094645543,-314.61239117,0.00021917,3]
[362205023,1748094645552,-430.0,0.00021917,3]
[362205024,1748094645562,-781.36,0.00021917,3]
[362205025,1748094645571,-430.0,0.00021917,3]
[362205026,1748094645583,-430.0,0.00021917,3]
[362205027,1748094645593,-430.0,0.00021917,3]
[362205028,1748094645603,-2885.31,0.00021917,2]
[362205029,1748094645613,-430.0,0.00021917,2]
[362205030,1748094645627,-430.0,0.00021917,3]
[362205031,1748094645638,-1006.92,0.00021917,3]
[362205032,1748094645649,-593.33,0.00021917,3]
[362205033,1748094645661,-430.0,0.00021917,3]
[362205034,1748094645670,-430.0,0.00021917,3]
[362205035,1748094645680,-430.0,0.00021917,3]
[362205036,1748094645690,-430.0,0.00021917,3]
[362205037,1748094645701,-433.19044807,0.00021917,3]
[362205038,1748094645714,-430.0,0.00021917,3]
[362205039,1748094645724,-430.0,0.00021917,3]
[362205040,1748094645734,-430.0,0.00021917,3]
[362205041,1748094645743,-536.23,0.00021917,3]
[362205042,1748094645754,-430.0,0.00021917,3]
[362205043,1748094645763,-430.0,0.00021917,3]
[362205044,1748094645773,-430.0,0.00021917,3]
[362205045,1748094645785,-447.66165184,0.00021917,3]
[362205046,1748094645795,-430.0,0.00021917,3]
[362205047,1748094645806,-430.0,0.00021917,3]
[362205048,1748094645815,-430.0,0.00021917,3]
[362205049,1748094645825,-430.0,0.00021917,3]
[362205050,1748094645835,-500.0,0.00022017,2]
[362205051,1748094645844,-212.51988043,0.00022191,3]
[362205052,1748094645853,-12649.97184255,0.00022191,3]
[362205053,1748094645863,-430.0,0.00022191,3]
[362205054,1748094645873,-430.0,0.00022191,3]
[362205055,1748094645883,-430.0,0.00022191,3]
[362205056,1748094645892,-430.0,0.00022191,3]
[362205057,1748094645902,-430.0,0.00022191,3]
[362205058,1748094645911,-781.36,0.00022191,3]
[362205059,1748094645921,-430.0,0.00022191,3]
[362205060,1748094645930,-430.0,0.00022191,3]
[362205061,1748094645939,-430.0,0.00022191,3]
[362205062,1748094645949,-430.0,0.00022191,2]
[362205063,1748094645958,-430.0,0.00022191,3]
[362205064,1748094645967,-1006.92,0.00022191,3]
[362205065,1748094645977,-593.33,0.00022191,3]
[362205067,1748094645987,-430.0,0.00022191,3]
[362205069,1748094645996,-430.0,0.00022191,3]
[362205070,1748094646006,-430.0,0.00022191,3]
[362205071,1748094646015,-430.0,0.00022191,3]
[362205072,1748094646024,-430.0,0.00022191,3]
[362205073,1748094646034,-430.0,0.00022191,3]
[362205075,1748094646044,-536.23,0.00022191,3]
[362205076,1748094646054,-430.0,0.00022191,3]
[362205077,1748094646064,-430.0,0.00022191,3]
[362205078,1748094646073,-430.0,0.00022191,3]
[362205079,1748094646083,-430.0,0.00022191,3]
[362205080,1748094646093,-430.0,0.00022191,3]
[362205081,1748094646102,-201.26251776,0.00022208,6]
[362205083,1748094646111,-500.0,0.00022442,2]
[362205084,1748094646121,-266.15321901,0.00022465,3]
[362205085,1748094646130,-430.0,0.00022465,3]
[362205086,1748094646140,-430.0,0.00022465,3]
[362205087,1748094646149,-430.0,0.00022465,3]
[362205088,1748094646159,-430.0,0.00022465,3]
[362205089,1748094646168,-781.36,0.00022465,3]
[362205090,1748094646177,-318.08,0.00022465,3]
[362205091,1748094646187,-430.0,0.00022465,3]
[362205092,1748094646198,-430.0,0.00022465,3]
[362205093,1748094646207,-430.0,0.00022465,2]
[362205094,1748094646217,-430.0,0.00022465,3]
[362205095,1748094646227,-1006.92,0.00022465,3]
[362205096,1748094646236,-593.33,0.00022465,3]
[362205097,1748094646246,-430.0,0.00022465,3]
[362205098,1748094646258,-430.0,0.00022465,3]
[362205099,1748094646268,-430.0,0.00022465,3]
[362205101,1748094646277,-430.0,0.00022465,3]
[362205102,1748094646286,-430.0,0.00022465,3]
[362205103,1748094646295,-430.0,0.00022465,3]
[362205104,1748094646305,-536.23,0.00022465,3]
[362205105,1748094646314,-430.0,0.00022465,3]
[362205106,1748094646323,-430.0,0.00022465,3]
[362205107,1748094646332,-430.0,0.00022465,3]
[362205108,1748094646341,-430.0,0.00022465,3]
[362205109,1748094646350,-430.0,0.00022465,3]
[362205110,1748094646359,-1005.0,0.000225,7]
[362205111,1748094646368,-815.49699705,0.00022565,2]
[362205112,1748094646379,-1649.38,0.00022632,2]
[362205113,1748094646388,-328.98,0.00022739,3]
[362205114,1748094646398,-430.0,0.00022739,3]
[362205115,1748094646408,-571.66021654,0.00022739,3]
[362205116,1748094646417,-430.0,0.00022739,3]
[362205117,1748094646427,-781.36,0.00022739,3]
[362205118,1748094646436,-430.0,0.00022739,3]
[362205119,1748094646445,-430.0,0.00022739,3]
[362205120,1748094646456,-430.0,0.00022739,2]
[362205121,1748094646466,-435.56,0.00022739,3]
[362205122,1748094646475,-1006.92,0.00022739,3]
[362205123,1748094646486,-593.33,0.00022739,3]
[362205124,1748094646495,-430.0,0.00022739,3]
[362205125,1748094646506,-430.0,0.00022739,3]
[362205126,1748094646517,-430.0,0.00022739,3]
[362205127,1748094646527,-430.0,0.00022739,3]
[362205128,1748094646539,-430.0,0.00022739,3]
[362205129,1748094646550,-430.0,0.00022739,3]
[362205130,1748094646559,-536.23,0.00022739,3]
[362205131,1748094646569,-430.0,0.00022739,3]
[362205132,1748094646579,-430.0,0.00022739,3]
[362205133,1748094646588,-430.0,0.00022739,3]
[362205134,1748094646598,-430.0,0.00022739,3]
[362205135,1748094646608,-430.0,0.00022739,3]
[362205136,1748094646618,-201.26251776,0.00022746,7]
[362205137,1748094646629,-430.0,0.00023013,3]
[362205138,1748094646638,-430.0,0.00023013,3]
[362205139,1748094646647,-781.36,0.00023013,3]
[362205140,1748094646657,-430.0,0.00023013,3]
[362205141,1748094646667,-430.0,0.00023013,3]
[362205142,1748094646678,-367.28,0.00023013,2]
[362205143,1748094646687,-1006.92,0.00023013,3]
[362205144,1748094646697,-593.33,0.00023013,3]
[362205145,1748094646710,-430.0,0.00023013,3]
[362205146,1748094646719,-430.0,0.00023013,3]
[362205147,1748094646729,-430.0,0.00023013,3]
[362205148,1748094646740,-430.0,0.00023013,3]
[362205149,1748094646751,-430.0,0.00023013,3]
[362205150,1748094646760,-536.23,0.00023013,3]
[362205151,1748094646769,-430.0,0.00023013,3]
[362205152,1748094646779,-430.0,0.00023013,3]
[362205153,1748094646788,-430.0,0.00023013,3]
[362205154,1748094646799,-430.0,0.00023013,3]
[362205155,1748094646809,-201.26251776,0.00023285,8]
[362205156,1748094646819,-430.0,0.00023287,3]
[362205157,1748094646828,-430.0,0.00023287,3]
[362205158,1748094646838,-781.36,0.00023287,3]
[362205159,1748094646847,-1006.92,0.00023287,3]
[362205160,1748094646856,-593.33,0.00023287,3]
[362205161,1748094646866,-430.0,0.00023287,3]
[362205162,1748094646876,-430.0,0.00023287,3]
[362205163,1748094646886,-430.0,0.00023287,3]
[362205164,1748094646895,-430.0,0.00023287,3]
[362205165,1748094646904,-536.23,0.00023287,3]
[362205166,1748094646914,-430.0,0.00023287,3]
[362205167,1748094646923,-430.0,0.00023287,3]
[362205168,1748094646932,-430.0,0.00023287,3]
[362205169,1748094646942,-430.0,0.00023287,3]
[362205170,1748094646952,-207.4,0.00023315,2]
[362205171,1748094646962,-430.0,0.00023561,3]
[362205172,1748094646971,-430.0,0.00023561,3]